[Event "Nové Hrady - Open"]
[Site "Nové Hrady, Czech Republic"]
[Date "2024.08.13"]
[Round "3.6"]
[White "Rendl, Luboš"]
[Black "Shivairo, Swegenyi Mark"]
[Result "1-0"]
[TimeControl "2x90min+30s"]
[WhiteFideId "23750197"]
[BlackFideId "23745029"]
[WhiteElo "1848"]
[BlackElo "1618"]

1. e4 {[%clk 01:30:02]} {[%emt 00:00:58]} e5 {[%clk 01:30:59]} 2. Nf3 {[%clk
01:30:25]} {[%emt 00:00:07]} Nc6 {[%emt 00:00:06]} 3. Bb5 {[%clk 01:30:38]}
{[%emt 00:00:16]} Bc5 {[%clk 01:28:29]} {[%emt 00:03:25]} 4. O-O {[%clk
01:29:02]} {[%emt 00:02:07]} d6 {[%clk 01:25:39]} {[%emt 00:03:20]} 5. c3
{[%clk 01:29:08]} {[%emt 00:00:23]} Bd7 {[%clk 01:22:11]} {[%emt 00:03:58]} 6.
d4 {[%clk 01:29:25]} {[%emt 00:00:14]} exd4 {[%clk 01:21:47]} {[%emt 00:00:53]}
7. cxd4 {[%clk 01:29:47]} {[%emt 00:00:09]} Bb6 {[%clk 01:21:17]} {[%emt
00:00:59]} 8. Nc3 {[%clk 01:28:41]} {[%emt 00:01:37]} Nge7 {[%clk 01:17:09]}
{[%emt 00:04:38]} 9. Bg5 {[%clk 01:20:10]} {[%emt 00:09:00]} f6 {[%clk
01:14:10]} {[%emt 00:03:29]} 10. Bh4 {[%clk 01:19:53]} {[%emt 00:00:47]} g5
{[%clk 01:02:48]} {[%emt 00:11:52]} 11. Nxg5 {[%clk 01:10:48]} {[%emt
00:09:35]} fxg5 {[%clk 01:02:46]} {[%emt 00:00:32]} 12. Bxg5 {[%clk 01:11:12]}
{[%emt 00:00:06]} h5 {[%clk 01:02:18]} {[%emt 00:00:59]} 13. Nd5 {[%clk
01:06:57]} {[%emt 00:04:45]} Qc8 {[%clk 00:51:48]} {[%emt 00:10:58]} 14. Bxc6
{[%clk 01:02:33]} {[%emt 00:04:56]} Nxc6 {[%clk 00:51:14]} {[%emt 00:01:04]} 15.
e5 {[%clk 00:49:40]} {[%emt 00:13:21]} Bxd4 {[%clk 00:35:21]} {[%emt 00:16:25]}
16. exd6 {[%clk 00:49:32]} {[%emt 00:00:37]} cxd6 {[%clk 00:34:31]} {[%emt
00:01:20]} 17. Re1+ {[%clk 00:49:50]} {[%emt 00:00:13]} Be6 {[%clk 00:26:09]}
{[%emt 00:08:52]} 18. Rxe6+ {[%clk 00:49:57]} {[%emt 00:00:23]} Kd7 {[%clk
00:21:21]} {[%emt 00:05:15]} 19. Re2 {[%clk 00:43:36]} {[%emt 00:06:52]} Qg8
{[%clk 00:16:44]} {[%emt 00:04:58]} 20. Ne7 {[%clk 00:35:14]} {[%emt 00:09:02]}
Qxg5 {[%clk 00:12:24]} {[%emt 00:04:50]} 21. Nxc6 {[%clk 00:35:23]} {[%emt
00:00:21]} Bxf2+ {[%clk 00:11:05]} {[%emt 00:01:49]} 22. Rxf2 {[%clk 00:35:47]}
{[%emt 00:00:06]} bxc6 {[%clk 00:11:16]} {[%emt 00:00:19]} 23. Rf7+ {[%clk
00:35:30]} {[%emt 00:00:47]} Ke8 {[%clk 00:09:13]} {[%emt 00:02:30]} 24. Qf3
{[%clk 00:33:38]} {[%emt 00:02:26]} Qc5+ {[%clk 00:07:12]} {[%emt 00:02:27]} 25.
Kh1 {[%clk 00:33:50]} {[%emt 00:00:21]} d5 {[%clk 00:06:42]} {[%emt 00:01:00]}
26. Re1+ {[%clk 00:33:53]} {[%emt 00:00:27]} Kd8 {[%clk 00:06:52]} {[%emt
00:00:20]} 27. Qf6+ {[%clk 00:34:08]} {[%emt 00:00:14]} 1-0

[Event "Nové Hrady - Open"]
[Site "Nové Hrady, Czech Republic"]
[Date "2024.08.13"]
[Round "3.7"]
[White "Mácová, Markéta"]
[Black "Schulz, Gerhard"]
[Result "1-0"]
[TimeControl "2x90min+30s"]
[WhiteFideId "23715588"]
[BlackFideId "1634780"]
[WhiteElo "1567"]
[BlackElo "1804"]

1. e4 {[%clk 01:30:58]} {[%emt 00:00:02]} c6 {[%clk 01:30:47]} {[%emt
00:00:14]} 2. d4 {[%clk 01:31:19]} {[%emt 00:00:08]} d5 {[%clk 01:31:16]} 3.
exd5 {[%clk 01:31:06]} {[%emt 00:00:45]} cxd5 {[%clk 01:31:41]} {[%emt
00:00:05]} 4. c3 {[%clk 01:30:38]} {[%emt 00:00:58]} Nf6 {[%clk 01:31:42]}
{[%emt 00:00:28]} 5. Bg5 {[%clk 01:29:51]} {[%emt 00:01:17]} Qb6 {[%clk
01:29:20]} {[%emt 00:02:53]} 6. Qc2 {[%clk 01:28:31]} {[%emt 00:01:50]} Qe6+
{[%clk 01:29:17]} {[%emt 00:00:33]} 7. Be2 {[%clk 01:27:46]} {[%emt 00:01:14]}
b6 {[%clk 01:21:39]} {[%emt 00:08:09]} 8. Nf3 {[%clk 01:25:40]} {[%emt
00:02:36]} Ba6 {[%clk 01:21:57]} {[%emt 00:00:12]} 9. Ne5 {[%clk 01:24:39]}
{[%emt 00:01:30]} Bxe2 {[%clk 01:18:42]} {[%emt 00:03:44]} 10. Qxe2 {[%clk
01:24:50]} {[%emt 00:00:18]} Nfd7 {[%clk 01:18:04]} {[%emt 00:01:10]} 11. Nf3
{[%clk 01:19:27]} {[%emt 00:05:53]} Qxe2+ {[%clk 01:18:00]} {[%emt 00:00:34]}
12. Kxe2 {[%clk 01:19:46]} {[%emt 00:00:11]} f6 {[%clk 01:18:11]} {[%emt
00:00:19]} 13. Bf4 {[%clk 01:16:58]} {[%emt 00:03:18]} Nc6 {[%clk 01:18:28]}
{[%emt 00:00:14]} 14. Re1 {[%clk 01:16:42]} {[%emt 00:00:45]} h5 {[%clk
01:17:17]} {[%emt 00:01:41]} 15. h4 {[%clk 01:16:03]} {[%emt 00:01:09]} O-O-O
{[%clk 01:13:45]} {[%emt 00:03:56]} 16. Kf1 {[%clk 01:14:27]} {[%emt 00:02:12]}
Rg8 {[%clk 01:13:55]} {[%emt 00:00:20]} 17. Na3 {[%clk 01:09:59]} {[%emt
00:04:59]} a6 {[%clk 01:13:17]} {[%emt 00:01:09]} 18. Re6 {[%clk 01:06:37]}
{[%emt 00:03:51]} Kb7 {[%clk 01:12:09]} {[%emt 00:01:37]} 19. b4 {[%clk
01:03:20]} {[%emt 00:03:47]} b5 {[%clk 01:10:35]} {[%emt 00:02:04]} 20. Nb1
{[%clk 01:00:55]} {[%emt 00:02:56]} Re8 {[%clk 01:10:53]} {[%emt 00:00:12]} 21.
a4 {[%clk 00:59:11]} {[%emt 00:02:14]} Nd8 {[%clk 01:11:09]} {[%emt 00:00:14]}
22. Re2 {[%clk 00:58:05]} {[%emt 00:01:35]} bxa4 {[%clk 01:05:33]} {[%emt
00:06:07]} 23. Rxa4 {[%clk 00:58:10]} {[%emt 00:00:25]} Nb6 {[%clk 01:04:43]}
{[%emt 00:01:19]} 24. Ra1 {[%clk 00:57:22]} {[%emt 00:01:18]} Nc6 {[%clk
01:03:53]} {[%emt 00:01:20]} 25. Nbd2 {[%clk 00:49:24]} {[%emt 00:08:28]} g6
{[%clk 01:01:27]} {[%emt 00:02:56]} 26. Nb3 {[%clk 00:49:25]} {[%emt 00:00:30]}
e6 {[%clk 01:01:28]} {[%emt 00:00:27]} 27. Rb2 {[%clk 00:41:14]} {[%emt
00:08:42]} e5 {[%clk 00:58:39]} {[%emt 00:03:19]} 28. Nc5+ {[%clk 00:37:03]}
{[%emt 00:04:41]} Bxc5 {[%clk 00:58:45]} {[%emt 00:00:25]} 29. bxc5 {[%clk
00:37:16]} {[%emt 00:00:16]} exf4 {[%clk 00:57:33]} {[%emt 00:01:42]} 30. Rxb6+
{[%clk 00:37:28]} {[%emt 00:00:17]} Kc7 {[%clk 00:57:27]} {[%emt 00:00:37]} 31.
Raxa6 {[%clk 00:37:27]} {[%emt 00:00:31]} Ne7 {[%clk 00:55:25]} {[%emt
00:02:32]} 32. Rxf6 {[%clk 00:34:58]} {[%emt 00:02:59]} Ra8 {[%clk 00:55:01]}
{[%emt 00:00:54]} 33. Ke2 {[%clk 00:32:11]} {[%emt 00:03:18]} Rxa6 {[%clk
00:54:53]} {[%emt 00:00:38]} 34. Rxa6 {[%clk 00:32:31]} {[%emt 00:00:09]} Rb8
{[%clk 00:54:59]} {[%emt 00:00:25]} 35. Kd3 {[%clk 00:30:16]} {[%emt 00:02:44]}
Nc6 {[%clk 00:53:50]} {[%emt 00:01:39]} 36. Ra2 {[%clk 00:26:58]} {[%emt
00:03:47]} Rb1 {[%clk 00:53:24]} {[%emt 00:00:57]} 37. Re2 {[%clk 00:26:03]}
{[%emt 00:01:25]} Rb3 {[%clk 00:50:22]} {[%emt 00:03:32]} 38. Kc2 {[%clk
00:24:41]} {[%emt 00:01:52]} Ra3 {[%clk 00:50:36]} {[%emt 00:00:17]} 39. Kb2
{[%clk 00:23:33]} {[%emt 00:01:37]} Ra8 {[%clk 00:50:43]} {[%emt 00:00:23]} 40.
Re6 {[%clk 00:23:01]} {[%emt 00:01:02]} Rb8+ {[%clk 00:50:40]} {[%emt
00:00:34]} 41. Kc2 {[%clk 00:23:09]} {[%emt 00:00:21]} Ra8 {[%clk 00:49:37]}
{[%emt 00:01:34]} 42. Nd2 {[%clk 00:20:57]} {[%emt 00:02:41]} Ra2+ {[%clk
00:49:35]} {[%emt 00:00:33]} 43. Kd3 {[%clk 00:21:13]} {[%emt 00:00:14]} Ra3
{[%clk 00:49:16]} {[%emt 00:00:49]} 44. Kc2 {[%clk 00:18:23]} {[%emt 00:03:19]}
Ra2+ {[%clk 00:49:45]} 45. Kc1 {[%clk 00:16:44]} {[%emt 00:02:09]} Ra1+ {[%clk
00:41:45]} {[%emt 00:08:30]} 46. Kb2 {[%clk 00:16:03]} {[%emt 00:01:11]} Rd1
{[%clk 00:41:45]} {[%emt 00:00:29]} 47. Kc2 {[%clk 00:15:56]} {[%emt 00:00:38]}
Ra1 {[%clk 00:42:14]} 48. Rxg6 {[%clk 00:15:03]} {[%emt 00:01:24]} Ra2+ {[%clk
00:42:19]} {[%emt 00:00:26]} 49. Kc1 {[%clk 00:14:54]} {[%emt 00:00:38]} Ra1+
{[%clk 00:42:33]} {[%emt 00:00:16]} 50. Kb2 {[%clk 00:14:35]} {[%emt 00:00:50]}
Rd1 {[%clk 00:42:54]} {[%emt 00:00:09]} 51. Kc2 {[%clk 00:14:36]} {[%emt
00:00:28]} Ra1 {[%emt 00:00:09]} 52. Rg7+ {[%emt 00:01:39]} Kc8 {[%emt
00:00:10]} 53. g3 {[%emt 00:01:30]} Ra2+ {[%clk 00:39:52]} {[%emt 00:00:08]} 54.
Kc1 {[%clk 00:14:53]} {[%emt 00:00:17]} Ra1+ {[%clk 00:40:20]} 55. Kb2 {[%clk
00:14:37]} {[%emt 00:00:41]} Rd1 {[%clk 00:40:47]} {[%emt 00:00:02]} 56. Kc2
{[%clk 00:14:48]} {[%emt 00:00:19]} Ra1 {[%clk 00:41:07]} {[%emt 00:00:10]} 57.
gxf4 {[%clk 00:15:02]} {[%emt 00:00:15]} Ra2+ {[%clk 00:40:43]} {[%emt
00:00:55]} 58. Kc1 {[%clk 00:15:21]} {[%emt 00:00:11]} Ra1+ {[%clk 00:40:58]}
{[%emt 00:00:15]} 59. Kb2 {[%clk 00:15:38]} {[%emt 00:00:13]} Rh1 {[%clk
00:41:21]} {[%emt 00:00:08]} 60. f5 {[%clk 00:14:44]} {[%emt 00:01:23]} Rxh4
{[%emt 00:00:22]} 61. f6 {[%emt 00:01:24]} Kd8 {[%clk 00:38:58]} {[%emt
00:01:07]} 62. Rg8+ {[%clk 00:13:54]} {[%emt 00:01:20]} Kd7 {[%clk 00:39:27]}
63. f7 {[%clk 00:14:02]} {[%emt 00:00:23]} 1-0

[Event "Nové Hrady - Open"]
[Site "Nové Hrady, Czech Republic"]
[Date "2024.08.13"]
[Round "3.8"]
[White "Junek, Petr"]
[Black "Šrámek, Jan"]
[Result "1-0"]
[TimeControl "2x90min+30s"]
[WhiteFideId "23739282"]
[BlackFideId "23743638"]
[WhiteElo "1775"]
[BlackElo "1555"]

1. e4 {[%clk 01:30:57]} {[%emt 00:00:02]} e5 {[%clk 01:29:57]} {[%emt
00:01:04]} 2. Nf3 {[%clk 01:31:23]} {[%emt 00:00:05]} Nc6 {[%clk 01:27:58]}
{[%emt 00:02:29]} 3. Bb5 {[%clk 01:31:26]} {[%emt 00:00:27]} Bc5 {[%clk
01:26:56]} {[%emt 00:01:31]} 4. O-O {[%clk 01:27:40]} {[%emt 00:04:16]} d6
{[%clk 01:23:55]} {[%emt 00:03:30]} 5. h3 {[%clk 01:27:09]} {[%emt 00:01:02]}
Nf6 {[%clk 01:19:57]} {[%emt 00:04:28]} 6. Re1 {[%clk 01:27:12]} {[%emt
00:00:26]} O-O {[%clk 01:17:46]} {[%emt 00:02:42]} 7. c3 {[%clk 01:25:46]}
{[%emt 00:01:56]} Be6 {[%clk 01:13:50]} {[%emt 00:04:25]} 8. a3 {[%clk
01:22:54]} {[%emt 00:03:23]} a6 {[%clk 01:08:51]} {[%emt 00:05:28]} 9. Ba4
{[%clk 01:22:56]} {[%emt 00:00:29]} h6 {[%clk 01:05:48]} {[%emt 00:03:34]} 10.
d4 {[%clk 01:22:30]} {[%emt 00:00:56]} exd4 {[%clk 00:59:54]} {[%emt 00:06:23]}
11. cxd4 {[%clk 01:22:45]} {[%emt 00:00:15]} b5 {[%clk 00:58:55]} {[%emt
00:01:28]} 12. Bc2 {[%clk 01:22:35]} {[%emt 00:00:40]} Bb6 {[%clk 00:55:57]}
{[%emt 00:03:28]} 13. d5 {[%clk 01:22:18]} {[%emt 00:00:48]} Ne5 {[%clk
00:54:52]} {[%emt 00:01:35]} 14. dxe6 {[%clk 01:21:33]} {[%emt 00:01:15]} Nxf3+
{[%clk 00:51:53]} {[%emt 00:03:28]} 15. Qxf3 {[%clk 01:20:39]} {[%emt
00:01:24]} fxe6 {[%clk 00:49:57]} {[%emt 00:02:26]} 16. Qg3 {[%clk 01:19:46]}
{[%emt 00:01:23]} Nxe4 {[%clk 00:46:52]} {[%emt 00:03:35]} 17. Qb3 {[%clk
00:58:16]} {[%emt 00:22:02]} Bxf2+ {[%clk 00:44:47]} {[%emt 00:02:34]} 18. Kh2
{[%clk 00:57:39]} {[%emt 00:01:07]} Bg3+ {[%clk 00:44:49]} {[%emt 00:00:28]} 19.
Kh1 {[%clk 00:48:53]} {[%emt 00:09:16]} Qf6 {[%clk 00:42:57]} {[%emt 00:02:22]}
20. Nd2 {[%clk 00:39:53]} {[%emt 00:09:29]} Nf2+ {[%clk 00:43:06]} {[%emt
00:00:21]} 21. Kg1 {[%clk 00:40:10]} {[%emt 00:00:13]} Nxh3+ {[%clk 00:43:22]}
{[%emt 00:00:14]} 22. Kh1 {[%clk 00:38:06]} {[%emt 00:02:35]} Nf2+ {[%clk
00:43:14]} {[%emt 00:00:37]} 23. Kg1 {[%clk 00:38:21]} {[%emt 00:00:15]} Qh4
{[%clk 00:41:46]} {[%emt 00:01:58]} 24. Kf1 {[%clk 00:34:58]} {[%emt 00:03:53]}
Ne4+ {[%clk 00:41:07]} {[%emt 00:01:10]} 25. Ke2 {[%clk 00:29:11]} {[%emt
00:06:17]} Rf2+ {[%clk 00:41:22]} {[%emt 00:00:15]} 26. Kd1 {[%clk 00:29:16]}
{[%emt 00:00:25]} Nxd2 {[%clk 00:40:50]} {[%emt 00:01:02]} 27. Qxe6+ {[%clk
00:26:09]} {[%emt 00:03:37]} Kf8 {[%clk 00:40:54]} {[%emt 00:00:26]} 28. Bxd2
{[%clk 00:24:40]} {[%emt 00:01:58]} Qd4 {[%clk 00:38:43]} {[%emt 00:02:42]} 29.
Qe7+ {[%clk 00:12:05]} {[%emt 00:13:05]} Kg8 {[%clk 00:38:38]} {[%emt
00:00:34]} 30. Qe6+ {[%clk 00:12:30]} {[%emt 00:00:06]} Rf7 {[%clk 00:38:36]}
{[%emt 00:00:31]} 31. Bb3 {[%clk 00:11:57]} {[%emt 00:01:04]} Raf8 {[%clk
00:38:34]} {[%emt 00:00:32]} 32. Qe3 {[%clk 00:11:56]} {[%emt 00:00:31]} Qg4+
{[%clk 00:38:24]} {[%emt 00:00:39]} 33. Re2 {[%clk 00:11:58]} {[%emt 00:00:28]}
Kh7 {[%clk 00:38:24]} {[%emt 00:00:31]} 34. Bxf7 {[%clk 00:12:02]} {[%emt
00:00:26]} Rxf7 {[%clk 00:38:43]} {[%emt 00:00:11]} 35. Kc2 {[%clk 00:11:41]}
{[%emt 00:00:51]} Rf4 {[%clk 00:38:38]} {[%emt 00:00:34]} 36. Qd3+ {[%clk
00:11:21]} {[%emt 00:00:51]} Rf5 {[%clk 00:38:29]} {[%emt 00:00:38]} 37. Rf1
{[%clk 00:11:03]} {[%emt 00:00:48]} Qc4+ {[%clk 00:37:57]} {[%emt 00:01:03]} 38.
Qxc4 {[%clk 00:11:05]} {[%emt 00:00:28]} Rc5 {[%clk 00:38:19]} {[%emt
00:00:07]} 39. Qxc5 {[%clk 00:11:17]} {[%emt 00:00:18]} dxc5 {[%clk 00:38:30]}
{[%emt 00:00:19]} 40. Bf4 {[%clk 00:11:24]} {[%emt 00:00:23]} 1-0

[Event "Nové Hrady - Open"]
[Site "Nové Hrady, Czech Republic"]
[Date "2024.08.13"]
[Round "3.9"]
[White "Schneider, Wolfgang"]
[Black "Dudarec, Elias"]
[Result "0-1"]
[TimeControl "2x90min+30s"]
[WhiteFideId "1639471"]
[BlackFideId "23714930"]
[WhiteElo "1542"]
[BlackElo "1750"]

1. e4 {[%clk 01:06:32]} {[%emt 00:24:27]} e6 {[%clk 01:30:49]} {[%emt
00:00:11]} 2. d4 {[%clk 01:05:32]} {[%emt 00:01:32]} d5 {[%clk 01:31:12]}
{[%emt 00:00:07]} 3. exd5 {[%clk 01:05:36]} {[%emt 00:00:26]} exd5 {[%clk
01:31:32]} {[%emt 00:00:08]} 4. a3 {[%clk 01:05:21]} {[%emt 00:00:46]} Bd6
{[%clk 01:31:36]} {[%emt 00:00:26]} 5. Nf3 {[%clk 01:04:33]} {[%emt 00:01:18]}
Nf6 {[%clk 01:31:58]} {[%emt 00:00:08]} 6. Nc3 {[%clk 01:04:41]} {[%emt
00:00:23]} O-O {[%clk 01:31:52]} {[%emt 00:00:34]} 7. Be2 {[%clk 01:04:39]}
{[%emt 00:00:33]} h6 {[%clk 01:30:35]} {[%emt 00:01:47]} 8. h3 {[%clk
01:03:24]} {[%emt 00:01:46]} c6 {[%clk 01:30:36]} {[%emt 00:00:29]} 9. Ne5
{[%clk 01:02:55]} {[%emt 00:00:58]} Re8 {[%clk 01:29:46]} {[%emt 00:01:20]} 10.
Bf4 {[%clk 01:02:57]} {[%emt 00:00:28]} Bf5 {[%clk 01:24:31]} {[%emt 00:05:45]}
11. Bd3 {[%clk 01:01:46]} {[%emt 00:01:41]} Ne4 {[%clk 01:22:00]} {[%emt
00:03:01]} 12. Qh5 {[%clk 00:55:45]} {[%emt 00:06:31]} Qf6 {[%clk 01:14:31]}
{[%emt 00:08:00]} 13. O-O {[%clk 00:54:12]} {[%emt 00:02:02]} Nxc3 {[%clk
01:04:45]} {[%emt 00:10:16]} 14. Bxf5 {[%clk 00:52:45]} {[%emt 00:01:56]} Ne2+
{[%clk 01:02:13]} {[%emt 00:03:03]} 15. Kh2 {[%clk 00:49:12]} {[%emt 00:04:03]}
Nxf4 {[%clk 01:01:40]} {[%emt 00:01:03]} 16. Qg4 {[%clk 00:49:15]} {[%emt
00:00:27]} Ng6 {[%clk 01:00:43]} {[%emt 00:01:27]} 17. f4 {[%clk 00:48:15]}
{[%emt 00:01:30]} Bxe5 {[%clk 00:51:33]} {[%emt 00:09:40]} 18. dxe5 {[%clk
00:47:04]} {[%emt 00:01:40]} Nxe5 {[%clk 00:36:59]} {[%emt 00:15:02]} 19. fxe5
{[%clk 00:46:07]} {[%emt 00:01:30]} Qxe5+ {[%clk 00:37:20]} {[%emt 00:00:09]}
20. Kh1 {[%clk 00:44:57]} {[%emt 00:01:40]} Na6 {[%clk 00:37:02]} {[%emt
00:00:49]} 21. b4 {[%clk 00:43:12]} {[%emt 00:02:14]} Nc7 {[%clk 00:36:32]}
{[%emt 00:01:00]} 22. Bd3 {[%clk 00:42:41]} {[%emt 00:01:01]} Rad8 {[%clk
00:31:40]} {[%emt 00:05:21]} 23. Rad1 {[%clk 00:40:16]} {[%emt 00:02:55]} Ne6
{[%clk 00:22:44]} {[%emt 00:09:27]} 24. Rde1 {[%clk 00:37:20]} {[%emt
00:03:26]} Qg5 {[%clk 00:20:46]} {[%emt 00:02:28]} 25. Qf3 {[%clk 00:36:16]}
{[%emt 00:01:33]} Rd7 {[%clk 00:20:21]} {[%emt 00:00:56]} 26. Re2 {[%clk
00:32:18]} {[%emt 00:04:27]} Rde7 {[%clk 00:19:18]} {[%emt 00:01:35]} 27. c3
{[%clk 00:28:05]} {[%emt 00:04:42]} Nc7 {[%clk 00:16:34]} {[%emt 00:03:14]} 28.
Rxe7 {[%clk 00:27:13]} {[%emt 00:01:21]} Rxe7 {[%clk 00:16:32]} {[%emt
00:00:33]} 29. Bc2 {[%clk 00:26:32]} {[%emt 00:01:10]} f6 {[%clk 00:14:03]}
{[%emt 00:03:00]} 30. Qd3 {[%clk 00:23:11]} {[%emt 00:03:51]} Re3 {[%clk
00:13:11]} {[%emt 00:01:22]} 31. Qd1 {[%clk 00:19:36]} {[%emt 00:04:02]} Rxc3
{[%clk 00:12:15]} {[%emt 00:01:29]} 32. a4 {[%clk 00:18:44]} {[%emt 00:01:22]}
Ne6 {[%clk 00:09:26]} {[%emt 00:03:19]} 33. Qe2 {[%clk 00:17:58]} {[%emt
00:01:14]} Re3 {[%clk 00:09:26]} {[%emt 00:00:33]} 34. Qf2 {[%clk 00:11:33]}
{[%emt 00:06:54]} d4 {[%clk 00:09:07]} {[%emt 00:00:49]} 35. Bd1 {[%clk
00:10:05]} {[%emt 00:01:57]} Nf4 {[%clk 00:07:32]} {[%emt 00:02:05]} 36. Bf3
{[%clk 00:09:09]} {[%emt 00:01:25]} Nd3 {[%clk 00:05:56]} {[%emt 00:02:08]} 37.
Qa2+ {[%clk 00:08:38]} {[%emt 00:01:00]} Kh8 {[%clk 00:05:23]} {[%emt
00:01:04]} 38. Qc4 {[%clk 00:06:35]} {[%emt 00:02:33]} Qh4 {[%clk 00:04:27]}
{[%emt 00:01:26]} 39. Kg1 {[%clk 00:03:09]} {[%emt 00:03:56]} Ne5 {[%clk
00:04:08]} {[%emt 00:00:49]} 40. Qc1 {[%clk 00:02:22]} {[%emt 00:01:16]} Nxf3+
{[%clk 00:04:29]} {[%emt 00:00:10]} 41. gxf3 {[%clk 00:01:27]} {[%emt
00:01:25]} Qg3+ {[%clk 00:04:54]} {[%emt 00:00:05]} 42. Kh1 {[%clk 00:01:08]}
{[%emt 00:00:48]} Re2 {[%clk 00:05:16]} {[%emt 00:00:08]} 0-1

[Event "Nové Hrady - Open"]
[Site "Nové Hrady, Czech Republic"]
[Date "2024.08.13"]
[Round "3.10"]
[White "Borecký, Andrej"]
[Black "Šebesta, Marek"]
[Result "0-1"]
[TimeControl "2x90min+30s"]
[WhiteFideId "23752670"]
[BlackFideId "23765119"]
[WhiteElo "1672"]
[BlackElo "1495"]

1. e4 {[%clk 01:30:58]} {[%emt 00:00:02]} e5 {[%clk 01:30:56]} {[%emt
00:00:04]} 2. Nf3 {[%clk 01:31:11]} {[%emt 00:00:18]} Nc6 {[%clk 01:31:07]}
{[%emt 00:00:19]} 3. Bc4 {[%clk 01:31:26]} {[%emt 00:00:15]} Nf6 {[%clk
01:31:10]} {[%emt 00:00:27]} 4. d3 {[%clk 01:31:37]} {[%emt 00:00:19]} h6
{[%clk 01:31:08]} {[%emt 00:00:31]} 5. O-O {[%clk 01:31:45]} {[%emt 00:00:22]}
Bc5 {[%clk 01:30:28]} {[%emt 00:01:11]} 6. c3 {[%clk 01:31:47]} {[%emt
00:00:27]} d6 {[%clk 01:27:50]} {[%emt 00:03:08]} 7. a4 {[%clk 01:31:00]}
{[%emt 00:01:17]} a6 {[%clk 01:26:19]} {[%emt 00:02:02]} 8. b4 {[%clk
01:27:17]} {[%emt 00:04:12]} Ba7 {[%clk 01:25:57]} {[%emt 00:00:52]} 9. Be3
{[%clk 01:22:50]} {[%emt 00:04:57]} Bg4 {[%clk 01:19:45]} {[%emt 00:06:43]} 10.
Nbd2 {[%clk 01:09:56]} {[%emt 00:13:24]} O-O {[%clk 01:15:32]} {[%emt
00:04:42]} 11. Bxa7 {[%clk 01:04:58]} {[%emt 00:05:29]} Rxa7 {[%clk 01:14:51]}
{[%emt 00:01:10]} 12. h3 {[%clk 01:03:37]} {[%emt 00:01:51]} Be6 {[%clk
01:08:35]} {[%emt 00:06:47]} 13. Re1 {[%clk 01:01:08]} {[%emt 00:02:58]} Ne7
{[%clk 00:59:36]} {[%emt 00:09:30]} 14. Qb3 {[%clk 00:58:58]} {[%emt 00:02:40]}
Qd7 {[%clk 00:56:30]} {[%emt 00:03:34]} 15. d4 {[%clk 00:57:36]} {[%emt
00:01:54]} exd4 {[%clk 00:52:55]} {[%emt 00:04:05]} 16. cxd4 {[%clk 00:57:02]}
{[%emt 00:01:04]} d5 {[%clk 00:51:14]} {[%emt 00:02:11]} 17. exd5 {[%clk
00:52:08]} {[%emt 00:05:24]} Nexd5 {[%clk 00:50:25]} {[%emt 00:01:18]} 18. Ne4
{[%clk 00:48:19]} {[%emt 00:04:19]} Nxe4 {[%clk 00:47:22]} {[%emt 00:03:33]} 19.
Rxe4 {[%clk 00:48:26]} {[%emt 00:00:23]} Raa8 {[%clk 00:46:24]} {[%emt
00:01:28]} 20. Rae1 {[%clk 00:48:11]} {[%emt 00:00:45]} b5 {[%clk 00:44:15]}
{[%emt 00:02:39]} 21. Ne5 {[%clk 00:46:29]} {[%emt 00:02:12]} bxc4 {[%clk
00:44:12]} {[%emt 00:00:32]} 22. Nxd7 {[%clk 00:46:42]} {[%emt 00:00:18]} cxb3
{[%clk 00:44:32]} {[%emt 00:00:11]} 23. Nxf8 {[%clk 00:45:52]} {[%emt
00:01:19]} Kxf8 {[%clk 00:44:15]} {[%emt 00:00:47]} 24. R4e2 {[%clk 00:29:35]}
{[%emt 00:16:47]} Nxb4 {[%clk 00:43:16]} {[%emt 00:01:29]} 25. Rb1 {[%clk
00:28:50]} {[%emt 00:01:15]} Rd8 {[%clk 00:41:58]} {[%emt 00:01:48]} 26. Rd2
{[%clk 00:28:19]} {[%emt 00:01:01]} Nc2 {[%clk 00:41:28]} {[%emt 00:00:58]} 27.
Rbd1 {[%clk 00:25:59]} {[%emt 00:02:52]} c5 {[%clk 00:36:30]} {[%emt 00:05:28]}
28. d5 {[%clk 00:24:39]} {[%emt 00:01:50]} Bd7 {[%clk 00:35:46]} {[%emt
00:01:14]} 29. Rd3 {[%clk 00:22:25]} {[%emt 00:02:45]} Bxa4 {[%clk 00:35:18]}
{[%emt 00:00:57]} 30. Rb1 {[%clk 00:21:33]} {[%emt 00:01:22]} c4 {[%clk
00:35:01]} {[%emt 00:00:47]} 31. Rc3 {[%clk 00:21:30]} {[%emt 00:00:32]} Bb5
{[%clk 00:35:16]} {[%emt 00:00:16]} 32. Rd1 {[%clk 00:21:33]} {[%emt 00:00:27]}
a5 {[%clk 00:34:16]} {[%emt 00:01:30]} 33. Kf1 {[%clk 00:21:03]} {[%emt
00:01:00]} a4 {[%clk 00:34:24]} {[%emt 00:00:23]} 34. Ke2 {[%clk 00:20:44]}
{[%emt 00:00:47]} a3 {[%clk 00:34:37]} {[%emt 00:00:18]} 0-1